Cogmind - Beta 13 @@@ ROGUE MODE // 2024.04.08 @ 20:51:53 Player: Cheeseinator Result: Destroyed by G-47 Trooper with Particle Gun Performance ------------- Evolutions (2) 1000 Regions Visited (5) 1000 Robots Destroyed (59) 295 Value Destroyed (1114) 1114 Prototype IDs (4) 80 Alien Tech Used (0) 0 Bonus (95) 95 TOTAL SCORE: 3584 Bonus ------- High Alert Combat Kills 95 Cogmind --------- Core Integrity 0/550 Matter 140/300 Energy 100/100 System Corruption 4% Temperature Cool (36) Movement Walking (120) Location -8/Materials Parts ------- > --- POWER (1) -------- (None) > --- PROPULSION (4) --- Aluminum Leg Aluminum Leg > --- UTILITY (4) ------ Visual Processing Unit Improved Signal Interpreter Terrain Scan Processor > --- WEAPON (2) ------- (None) > --- INVENTORY (5) ---- (None) Peak State ------------ > --- POWER ------------ Heavy Ion Engine > --- PROPULSION ------- Aluminum Leg Aluminum Leg > --- UTILITY ---------- Small Storage Unit Medium Matter Pod Experimental Sensor Array Light Armor Plating > --- WEAPON ----------- Improved EM Shotgun Medium Laser > --- INVENTORY -------- Ion Engine Light Ion Engine Aluminum Leg Light Assault Rifle [Rating: 21] Favorites ----------- Power Light Ion Engine Engine Light Ion Engine Propulsion Aluminum Leg Leg Aluminum Leg Wheel Compact Wheel Flight Unit Flight Unit Utility Small Storage Unit Device Experimental Sensor Array Storage Small Storage Unit Processor Visual Processing Unit Protection Light Armor Plating Weapon EM Pulse Gun Energy Gun EM Pulse Gun Ballistic Gun Light Assault Rifle Ballistic Cannon Flak Cannon Launcher Rocket Launcher Build | -11 -10 -10 -9 -9 -8 ------- Run | Yrd Mat Min Mat Min Mat Slots Evolved 4 | . . . 2 . 2 Power . | . . . . . . Propulsion 2 | . . . . . 2 Utility 2 | . . . 2 . . Weapon . | . . . . . . Parts Attached 55 | 7 2 5 12 8 21 Power 8 | 1 1 2 2 1 1 Engine 8 | 1 1 2 2 1 1 Core . | . . . . . . Reactor . | . . . . . . Propulsion 15 | 2 . . 2 3 8 Treads . | . . . . . . Leg 6 | 2 . . 2 . 2 Wheel 1 | . . . . 1 . Hover . | . . . . . . Flight 8 | . . . . 2 6 Utility 19 | 2 1 2 5 3 6 Device 5 | 1 . 1 1 1 1 Storage 5 | 1 . 1 2 . 1 Processor 6 | . 1 . . 2 3 Hackware . | . . . . . . Protection 3 | . . . 2 . 1 Artifact . | . . . . . . Weapon 13 | 2 . 1 3 1 6 Energy Gun 9 | 2 . . 2 1 4 Energy Cannon . | . . . . . . Ballistic Gun 1 | . . . 1 . . Ballistic Cannon 1 | . . . . . 1 Launcher 2 | . . 1 . . 1 Special Weapon . | . . . . . . Impact Weapon . | . . . . . . Slashing Weapon . | . . . . . . Piercing Weapon . | . . . . . . Special Melee Weapon . | . . . . . . Unidentified Prototypes 4 | . . 1 2 . 1 Parts Lost 22 | . . . 4 2 16 Power 1 | . . . . . 1 Propulsion 7 | . . . . . 7 Utility 5 | . . . 1 1 3 Weapon 9 | . . . 3 1 5 Highest Loss Streak 8 | . . . 3 1 8 To Critical Strikes . | . . . . . . Average Slot Usage (%) 89 | . 100 100 93 37 68 Engine 11 | . 14 14 11 6 5 Leg 20 | . 28 28 22 1 1 Flight 4 | . . . . 11 22 Device 8 | . 6 7 14 4 4 Storage 14 | . 14 16 22 1 . Processor 5 | . 7 3 . 6 19 Protection 1 | . . . 7 . . Energy Gun 14 | . 28 16 12 5 11 Launcher 6 | . . 11 2 . 1 Naked Turns 51 | . . . . 51 . Heaviest Build 91 | 15 15 17 24 22 91 Greatest Support 20 | 20 20 20 20 20 20 Greatest Overweight (x) 5 | . . . 1 1 5 Average Overweight (x) . | . . . . . . Largest Inventory Capacity 25 | 8 8 8 8 8 25 Average Capacity 7 | 6 8 8 8 5 5 Most Carried 8 | 4 8 8 7 5 5 Average Carried 5 | 3 6 7 4 4 2 Final Capacity 8 | 8 8 8 8 5 5 Final Carried 8 | 4 7 8 4 4 . Class Distribution -------------------- 85% | Mutant 7% | Scavenger-Scout 6% | Scavenger-Mutant Dominant Class ---------------- Mutant | -10/Materials Mutant | -10/Mines Mutant | -9/Materials Mutant | -9/Mines Scavenger-Scout | -8/Materials Resources | -11 -10 -10 -9 -9 -8 ----------- Run | Yrd Mat Min Mat Min Mat Matter Collected 940 | 267 3 193 238 45 194 Remotely . | . . . . . . Salvage Created 1544 | 206 21 389 497 . 431 Parts 124 | 15 1 34 37 . 37 Haulers Intercepted 2 | . . . 1 . 1 Recyclers Shooed 3 | . 1 . 2 . . Parts Field Recycled . | . . . . . . Retrieved Matter . | . . . . . . Parts Self-Destructed . | . . . . . . Prevented . | . . . . . . Kills | -11 -10 -10 -9 -9 -8 ------- Run | Yrd Mat Min Mat Min Mat Combat Hostiles Destroyed 31 | . . 7 10 . 14 Guns 17 | . . 2 8 . 7 Cannons 1 | . . . . . 1 AOE 13 | . . 5 2 . 6 Classes Destroyed 10 | 3 1 2 4 . . Worker 8 | 2 . 2 3 . 1 Builder 6 | . 1 2 . . 3 Tunneler 7 | 3 . 3 . . 1 Hauler 2 | . . . 1 . 1 Recycler 3 | 1 . . 2 . . Watcher 2 | . . . 2 . . Swarmer 13 | . . 3 4 . 6 Grunt 13 | . . 4 3 . 6 Brawler 2 | . . . 1 . 1 Sentry 3 | . . . 2 . 1 Best Kill Streak 11 | 3 1 3 5 . 11 Combat Bots Only 8 | . . 3 4 . 8 Max Kills in Single Turn 2 | 1 1 2 2 . 2 Gunslinging . | . . . . . . Exploded 2 | . . 2 1 . 1 Melee . | . . . . . . Uniques/NPCs Destroyed . | . . . . . . Combat | -11 -10 -10 -9 -9 -8 -------- Run | Yrd Mat Min Mat Min Mat Hostile Shots Fired 248 | . . 12 61 53 122 Missed 78 | . . 4 14 19 41 Damage Taken 2613 | 22 . 154 629 454 1354 Core 972 | . . 39 82 301 550 Absorbed by Shields . | . . . . . . Core Remaining (%) 62 | 100 . 84 . 4 . Volleys Fired 178 | 17 4 42 60 14 41 Largest 2 | 2 2 2 2 1 2 Hottest 115 | 80 80 80 95 45 115 Shots Fired 241 | 34 8 56 68 14 61 Gun 207 | 34 8 53 56 14 42 Cannon 6 | . . . . . 6 Launcher 28 | . . 3 12 . 13 Special . | . . . . . . Kinetic 7 | . . . 1 . 6 Thermal 40 | . . . 10 11 19 Explosive 28 | . . 3 12 . 13 Electromagnetic 166 | 34 8 53 45 3 23 Robot Hit Streak 11 | 8 5 9 7 2 11 Robot Miss Streak 8 | 4 2 4 4 4 8 Penetration Max . | . . . . . . Secondary Targets . | . . . . . . Shots Hit Robots 142 | 13 5 31 46 5 42 Core Hits 106 | 6 2 16 25 6 51 Critical Kills . | . . . . . . Critical Parts Destroyed . | . . . . . . Critical Strikes 1 | . . . 1 . . Burn 1 | . . . 1 . . Melee Attacks . | . . . . . . Impact . | . . . . . . Slashing . | . . . . . . Piercing . | . . . . . . Sneak Attacks . | . . . . . . Combat Hostiles . | . . . . . . Follow-up Attacks . | . . . . . . Damage Inflicted 3665 | 220 71 747 1116 107 1404 Guns 1714 | 147 71 406 541 89 460 Cannons 121 | . . . . . 121 Explosions 1810 | 73 . 341 575 . 821 Melee . | . . . . . . Ramming 20 | . . . . 18 2 Kinetic 121 | . . . . . 121 Thermal 718 | 73 . 196 268 55 126 Explosive 1374 | . . 145 408 . 821 Electromagnetic 1432 | 147 71 406 440 34 334 Impact . | . . . . . . Slashing . | . . . . . . Piercing . | . . . . . . Highest Corruption 4 | . . . . . 4 Average Corruption 2 | . . . . . 2 Corruption Purged . | . . . . . . Corruption Blocked . | . . . . . . Effects 3 | . . . . . 3 Matter Fused 1 | . . . . . 1 Heat Flow Errors 1 | . . . . . 1 Misfires 1 | . . . . . 1 Overload Shots . | . . . . . . Overflow Damage 39 | . . . 30 . 9 Projectiles . | . . . . . . Explosions 39 | . . . 30 . 9 Melee . | . . . . . . Knockbacks 7 | . . . . . 7 Impact . | . . . . . . Kinetic 7 | . . . . . 7 Secondary . | . . . . . . Self-Inflicted Damage 225 | 22 . 64 . 8 131 Shots 8 | 2 . 2 . . 4 Rammed 4 | . . . . 3 1 Targets Rammed 5 | . . . . 3 2 Kicked 1 | . . . . . 1 Crushed . | . . . . . . Highest Temperature 208 | 156 36 157 66 60 208 Average Temperature 46 | 58 20 62 24 30 60 Received Heat Transfer 1030 | . . 51 180 241 558 Siege Activations . | . . . . . . Robots Corrupted . | . . . . . . Combat Hostiles . | . . . . . . Parts Fried 3 | 1 . 1 1 . . Impact Corruptions . | . . . . . . Robots Melted . | . . . . . . Combat Hostiles . | . . . . . . Parts Melted . | . . . . . . Heat Transferred 1105 | 100 . 200 470 125 210 Parts Sabotaged . | . . . . . . Parts Stolen . | . . . . . . Parts Stripped . | . . . . . . Power Chain Reactions 5 | 2 . 2 . . 1 Alert | -11 -10 -10 -9 -9 -8 ------- Run | Yrd Mat Min Mat Min Mat Peak Influence 741 | 30 24 170 321 235 741 Initial 91 | . 19 9 22 90 91 Average 142 | 9 22 89 190 151 347 Maximum Alert Level 3 | . . . 1 1 3 Low Security (%) 79 | 100 100 100 45 85 43 Level 1 15 | . . . 54 14 23 Level 2 2 | . . . . . 16 Level 3 2 | . . . . . 16 Level 4 . | . . . . . . Level 5 . | . . . . . . High Security . | . . . . . . Max Security . | . . . . . . Squads Dispatched 5 | . . . . . 5 Investigation 1 | . . . . . 1 Extermination . | . . . . . . Reinforcement 4 | . . . . . 4 Assault . | . . . . . . Garrison . | . . . . . . Intercept . | . . . . . . Searches Triggered . | . . . . . . Construction Impeded 2 | . . . . . 2 Haulers Reinforced . | . . . . . . Active Scanning Responses . | . . . . . . Cargo Convoy Interrupts . | . . . . . . Stealth | -11 -10 -10 -9 -9 -8 --------- Run | Yrd Mat Min Mat Min Mat Distress Signals 5 | . . . 1 . 4 Communications Jammed . | . . . . . . Distress Signals . | . . . . . . Times Spotted 77 | . . 5 14 20 38 Peak Tracking Total 11 | . . 2 4 8 11 Tactical Retreats 14 | . . . . 7 7 Traps | -11 -10 -10 -9 -9 -8 ------- Run | Yrd Mat Min Mat Min Mat Traps Triggered 1 | . . . . . 1 Indirectly . | . . . . . . Trap Hack Attempts . | . . . . . . Triggered . | . . . . . . Disarmed . | . . . . . . Reprogrammed . | . . . . . . Reused . | . . . . . . Traps Extracted . | . . . . . . Installed . | . . . . . . Triggered . | . . . . . . Machines | -11 -10 -10 -9 -9 -8 ---------- Run | Yrd Mat Min Mat Min Mat Machines Disabled 9 | . . 3 3 . 3 Max in Single Turn 2 | . . 2 2 . 2 Machines Repaired . | . . . . . . Machines Dismantled . | . . . . . . Machines Sabotaged . | . . . . . . Overloaded Fab Kills . | . . . . . . Hacking | -11 -10 -10 -9 -9 -8 --------- Run | Yrd Mat Min Mat Min Mat Machines Accessed 1 | . . . . . 1 Terminals . | . . . . . . Fabricators . | . . . . . . Repair Stations . | . . . . . . Recycling Units . | . . . . . . Scanalyzers 1 | . . . . . 1 Garrison Access . | . . . . . . Total Hacks 2 | . . . . . 2 Successful 2 | . . . . . 2 Failed . | . . . . . . Catastrophic . | . . . . . . Database Lockouts . | . . . . . . Manual . | . . . . . . Terminals . | . . . . . . Fabricators . | . . . . . . Repair Stations . | . . . . . . Recycling Units . | . . . . . . Scanalyzers 2 | . . . . . 2 Garrison Access . | . . . . . . Terminal Hacks . | . . . . . . Fabricator Hacks . | . . . . . . Repair Station Hacks . | . . . . . . Recycling Unit Hacks . | . . . . . . Scanalyzer 2 | . . . . . 2 Insert Component 1 | . . . . . 1 Analyze 1 | . . . . . 1 Garrison Access Hacks . | . . . . . . Unauthorized Hacks . | . . . . . . Terminals . | . . . . . . Fabricators . | . . . . . . Repair Stations . | . . . . . . Recycling Units . | . . . . . . Scanalyzers . | . . . . . . Garrison Access . | . . . . . . Data Cores Recovered . | . . . . . . Used . | . . . . . . Hacking Detections . | . . . . . . Full Trace Events . | . . . . . . Feedback Events . | . . . . . . Feedback Blocked . | . . . . . . Robot Schematics Acquired . | . . . . . . Robots Built . | . . . . . . Authchips . | . . . . . . Time . | . . . . . . Total Robot Build Rating . | . . . . . . Part Schematics Acquired 1 | . . . . . 1 Parts Built . | . . . . . . Authchips . | . . . . . . Time . | . . . . . . Total Part Build Rating . | . . . . . . Parts Repaired . | . . . . . . Time . | . . . . . . Parts Recycled . | . . . . . . Recycled Matter . | . . . . . . Retrieved Matter . | . . . . . . Retrieved Components . | . . . . . . Parts Scanalyzed 1 | . . . . . 1 Part Schematics Acquired 1 | . . . . . 1 Parts Damaged . | . . . . . . Bothacking | -11 -10 -10 -9 -9 -8 ------------ Run | Yrd Mat Min Mat Min Mat Used RIF Installer . | . . . . . . Robots Hacked . | . . . . . . Non-combat . | . . . . . . Combat . | . . . . . . Robot Hacks Applied . | . . . . . . Relay Couplers Released . | . . . . . . Fabnet Peak Effective % . | . . . . . . Robots Rewired . | . . . . . . Allies Hacked . | . . . . . . Hacks Repelled . | . . . . . . Allies | -11 -10 -10 -9 -9 -8 -------- Run | Yrd Mat Min Mat Min Mat Total Allies . | . . . . . . Largest Group . | . . . . . . Highest-Rated Group . | . . . . . . Highest-Rated Ally . | . . . . . . Total Orders . | . . . . . . Ally Attacks . | . . . . . . Total Damage . | . . . . . . Kills . | . . . . . . Allies Corrupted . | . . . . . . Allies Melted . | . . . . . . Intel | -11 -10 -10 -9 -9 -8 ------- Run | Yrd Mat Min Mat Min Mat Robot Analysis Total . | . . . . . . Derelict Logs Recovered 4 | . . 3 . 1 . Drone Launches . | . . . . . . Drone Recoveries . | . . . . . . Exploration | -11 -10 -10 -9 -9 -8 ------------- Run | Yrd Mat Min Mat Min Mat Turns Passed 2688 | 158 166 1255 561 159 389 Spaces Moved 2085 | 79 119 890 233 248 516 Core 213 | 13 . . . 127 73 Treads . | . . . . . . Legs 1334 | 66 119 890 233 2 24 Wheels 1 | . . . . 1 . Hover . | . . . . . . Flight 537 | . . . . 118 419 Fastest Speed 31 | 50 120 120 120 37 31 Average Speed 95 | 108 120 120 161 45 41 Slowest Speed 431 | 120 120 120 190 190 431 Overloaded Moves . | . . . . . . Propulsion Burnouts . | . . . . . . Robots Hopped 4 | . . . . . 4 Cave-ins Triggered 1 | . . . . . 1 Exploration Rate (%) 38 | 6 11 91 30 59 32 Regions Visited 5 Branch Regions 2 Pre-discovered Areas . | . . . . . . Known Exits Taken . | . . . . . . Unknown Exits Taken 5 | 1 1 1 1 1 . Scrap Searched 3 | . . 2 . 1 . Spaces Dug 9 | . . 9 . . . Terrain Destroyed 206 | 10 . 57 80 . 59 Melee . | . . . . . . Projectile . | . . . . . . AOE 206 | 10 . 57 80 . 59 Terrain Rammed . | . . . . . . Walls Destroyed . | . . . . . . Machines Disabled . | . . . . . . Actions | -11 -10 -10 -9 -9 -8 --------- Run | Yrd Mat Min Mat Min Mat Total 2524 | 114 135 1022 350 278 625 Wait 157 | 8 1 76 35 1 36 Move 2072 | 78 118 889 232 247 508 Hop 4 | . . . . . 4 Pick Up 26 | 4 5 3 5 3 6 Fast Attach 28 | 7 1 3 1 6 10 Attach 15 | . . . 4 2 9 Detach 6 | . 1 2 . . 3 Swap 12 | . 1 2 7 . 2 Drop 21 | . 4 5 6 2 4 Fire 178 | 17 4 42 60 14 41 Melee . | . . . . . . Ram 4 | . . . . 3 1 Kick 1 | . . . . . 1 Crush . | . . . . . . Escape Stasis . | . . . . . . Rewire . | . . . . . . Trap . | . . . . . . Miscellaneous . | . . . . . . Route ------- -11/Scrapyard -10/Materials -10/Mines (discovered 3 exits: [*Mat x2] / *Sub) -9/Materials (discovered 2 exits: *Mat / [*Min]) -9/Mines -8/Materials (discovered 1 exit: [*Fac]) History --------- Turn | Location | Event 9 | -11/Scrapyard | Discovered new exit (range 16) 159 | -11/Scrapyard | Entered Materials 260 | -10/Materials | Discovered new exit (range 15) 324 | -10/Materials | Build established: Mutant 325 | -10/Materials | Entered Mines 340 | -10/Mines | Met a Derelict bent on vengeance 407 | -10/Mines | Discovered new exit (range 15) 500 | -10/Mines | Found a hidden stash of uninstalled traps 515 | -10/Mines | Identified exit to Subcaves 533 | -10/Mines | Learned Materials terminal intel 539 | -10/Mines | Received a Rocket Launcher from a helpful Derelict 572 | -10/Mines | Discovered new exit (range 15) 790 | -10/Mines | Learned Materials emergency access door positions 871 | -10/Mines | Found a damaged Exp. Sensor Array with a note attached 884 | -10/Mines | Found Prototype Device 884 | -10/Mines | Identified Exp. Sensor Array 1580 | -10/Mines | Entered Materials 1580 | -9/Materials | Evolved 2 slots: Utility x2 1582 | -9/Materials | Loaded intel: 12 terminal locations 1775 | -9/Materials | Lost 3 parts (1u2w) 1776 | -9/Materials | Discovered new exit (range 16) 1829 | -9/Materials | Discovered new exit (range 15) 2141 | -9/Materials | Entered Mines 2151 | -9/Mines | Released all parts (7) 2170 | -9/Mines | Assembled infested the area 2175 | -9/Mines | Assisted by a Guerilla fighting off Assembled 2203 | -9/Mines | Core integrity fell below 50% 2215 | -9/Mines | Core integrity fell below 20% 2258 | -9/Mines | Learned location of 1 exit from Lower Caves 2280 | -9/Mines | Discovered new exit (range 11) 2300 | -9/Mines | Entered Materials 2300 | -8/Materials | Evolved 2 slots: Propulsion x2 2498 | -8/Materials | Discovered new exit (range 13) 2581 | -8/Materials | Lost 8 parts (1p4n1u2w) 2611 | -8/Materials | Core integrity fell below 50% 2638 | -8/Materials | Crushed by falling debris 2638 | -8/Materials | Core integrity fell below 20% 2662 | -8/Materials | Destroyed 8 combat bots 2669 | -8/Materials | Lost 4 parts (1n1u2w) 2689 | -8/Materials | Destroyed by G-47 Trooper with Particle Gun Last Messages --------------- 02649_ ALERT: Construction progress impeded, dispatching reinforcements to local area. 02650_ Penetrated by Slug. 02651_ Acquired Aluminum Leg. 02656_ U-05 Engineer lays Concrete. 02658_ U-05 Engineer builds a Wall. 02659_ Penetrated by Slug. 02660_ Acquired 28 matter. 02661_ K-01 Serf collects debris. 02662_ U-05 Engineer lays Concrete. 02663_ Acquired Terrain Scan Processor. 02663_ U-05 Engineer lays Concrete. 02664_ K-01 Serf collects debris. 02665_ U-05 Engineer builds a Wall. 02681_ G-47 Trooper knocked back. 02681_ Lgt. Armor Plating destroyed. 02683_ G-47 Trooper knocked back. 02687_ Flak Cannon destroyed. 02689_ Kicked G-47 Trooper. 02689_ Critical hit (Burn: +37). Map ----- +----------------------------------------------------+ | ############# # #??""""? # #?######### "" | | # """ #?"??""??# #?#?##????# """ | | # """ #? ?"" # ###?#?##??# """ | | # """ #??##?#?## ##??####### """ | | ########### + """ ##??###?## ##?#?##?#?# " | | ?????? ???#?# # """ #?###????# ########### | | ??????? ?#??# # ###?##?### ##?# ### | | ???? ??????## ################ #### ### | | ????????????# =## #?# ### | | ??????"??#??# [*%+= ### #?? | | ??????"? #??# !## #?# ##? | | ???#???????## ########### %## ### #?? | | ???????????## # ? ? ?#* *## #?# #?? | | ???????????## #? ???? ?## ## #?# #?# | | ????######### # ??? ## ## ### ##? | | ?? #?? ? ?# ###+### ## | | ?? #??????"?# #? | | ?? # ? ""??+ T #? | | ???##+######+##### #?????"??# #? | | ????????????????## # ?????"?# [ ####### ## | | ???????????? ????# #??? ???## ##?##??#######? | | ?????????????????# #????#????# # ?????#??????? | | ????????????????## #??#????#?# # ?? ??#?? ???? | | ?????????????? ??# ########### + ? ??????????? | | ?????????? ??????# m #?????????????? | | ????????? ????? ?# @g #??????????"??? | | ?????????????????# k g #??????????"??? | | ????########?????# #####+#########?????????????? | | ????# #?????# # = ##?????#? ????? | | ???# #?????# # = % #?????#???????? | | ???# """ #?????# # ##????????????? | | #### """ #?#???# # #??##?????????? | | *# # """ #??#??# # | #?????????????? | | %# ####??# # % #????? ???????? | | ## ####### ######+######+#####?????????? | | % +?????????? | | ** * |!= / ####??????? | | !* ! * ????? | | *%= ############ #######??????? | | ## # """ ""#??????????? | | ### #"" """ Y"#??????????? | | # ##?# #"T """ ""#??????????? | | #??# """ * #"" ##### #????? | | #??#* """"" + #????? | | #??# """"" # ##### #????? | | ###??# """"" # #####+##????????????? | | ## ###????# """ # #???????????????????? | | #########???????########## #???????????????????? | | ?????????????????????????# #???????????????????? | | ?????????????????????????#####???????????????????? | +----------------------------------------------------+ Best States ------------- Heat Dissipation 31 Energy Generation 14 Energy Capacity 280 Matter Stores 400 Matter Capacity 400 Sight Range 18 Robot Scan Range 20 Terrain Scan Range 14 Terrain Scan Density 85 Armor Coverage 150 Evasion (%) 63 Targeting Accuracy 5 Item Schematics ----------------- Ion Engine | -8/Materials | Scanalyzed Robot Schematics ------------------ None Fabricated ------------ Nothing Alien Tech Used ----------------- None Achievements -------------- Close Call I Survived The Infestation Challenges ------------ None Game ------ Seed HeavyFireBoomstick Manual? 0 Play Time 00:32:54 Cumulative 9.2 hours Start 2024.04.08 @ 14:34:04 End 2024.04.08 @ 20:51:53 Sessions 3 Manual Loads 0 Difficulty Rogue Special Mode None Game No. 12 Rogue 1 Adventurer 11 Explorer 0 Win Type - Total 0 Types 0/0/0/0/0/0/0/0/0 Lore% 5 Gallery% 18 Achievement% 16 Wizard Run 0 Options --------- Layout 0 ASCII 0 Keyboard 1 Movement Numpad Keybinds 0 Fullscreen 2 Font 18/Terminus Map View 76x50 Zoom Use 0% Tactical HUD 1 Map Filters NONE Filters NONE Steam 1 RUN: 27297e4e-46d1-471c-b2f9-d8e1bc6b1351